fUSD/lending_fUSD_20250525
["ID","MTS","AMOUNT","RATE_DAILY","PERIOD"]
[362308649,1748178643418,-420.0,0.00019999,2]
[362308650,1748178643427,-420.0,0.00019999,2]
[362308651,1748178643436,-420.0,0.00019999,2]
[362308652,1748178643445,-420.0,0.00019999,2]
[362308653,1748178643454,-420.0,0.00019999,2]
[362308654,1748178643463,-420.0,0.00019999,2]
[362308655,1748178643473,-420.0,0.00019999,2]
[362308657,1748178643482,-420.0,0.00019999,2]
[362308660,1748178643491,-420.0,0.00019999,2]
[362308663,1748178643500,-420.0,0.00019999,2]
[362308666,1748178643510,-420.0,0.00019999,2]
[362308669,1748178643519,-420.0,0.00019999,2]
[362308671,1748178643529,-420.0,0.00019999,2]
[362308673,1748178643538,-420.0,0.00019999,2]
[362308674,1748178643547,-420.0,0.00019999,2]
[362308676,1748178643557,-420.0,0.00019999,2]
[362308678,1748178643566,-420.0,0.00019999,2]
[362308680,1748178643575,-420.0,0.00019999,2]
[362308682,1748178643584,-285.23919745,0.00019999,2]
[362308684,1748178643593,-420.0,0.00019999,2]
[362308686,1748178643602,-420.0,0.00019999,2]
[362308688,1748178643611,-420.0,0.00019999,2]
[362308690,1748178643620,-420.0,0.00019999,2]
[362308692,1748178643629,-420.0,0.00019999,2]
[362308694,1748178643638,-420.0,0.00019999,2]
[362308696,1748178643648,-420.0,0.00019999,2]
[362308698,1748178643657,-383.14,0.00019999,2]
[362308700,1748178643666,-420.0,0.00019999,2]
[362308702,1748178643676,-420.0,0.00019999,2]
[362308704,1748178643685,-420.0,0.00019999,2]
[362308706,1748178643695,-420.0,0.00019999,2]
[362308708,1748178643704,-420.0,0.00019999,2]
[362308710,1748178643714,-420.0,0.00019999,2]
[362308712,1748178643723,-287.85425911,0.00019999,2]
[362308714,1748178643733,-739.86,0.00019999,2]
[362308716,1748178643742,-739.86,0.00019999,2]
[362308718,1748178643751,-739.86,0.00019999,2]
[362308720,1748178643760,-739.86,0.00019999,2]
[362308722,1748178643769,-739.86,0.00019999,2]
[362308724,1748178643779,-739.86,0.00019999,2]
[362308726,1748178643789,-739.86,0.00019999,2]
[362308728,1748178643799,-739.86,0.00019999,2]
[362308730,1748178643808,-739.86,0.00019999,2]
[362308732,1748178643817,-739.86,0.00019999,2]
[362308734,1748178643827,-739.86,0.00019999,2]
[362308736,1748178643836,-739.86,0.00019999,2]
[362308738,1748178643845,-739.86,0.00019999,2]
[362308740,1748178643855,-739.86,0.00019999,2]
[362308742,1748178643864,-739.86,0.00019999,2]
[362308743,1748178643873,-739.86,0.00019999,2]
[362308745,1748178643882,-739.86,0.00019999,2]
[362308747,1748178643891,-739.86,0.00019999,2]
[362308749,1748178643900,-739.86,0.00019999,2]
[362308751,1748178643910,-739.86,0.00019999,2]
[362308753,1748178643920,-739.86,0.00019999,2]
[362308755,1748178643930,-739.86,0.00019999,2]
[362308757,1748178643943,-739.92448611,0.00019999,2]
[362308759,1748178643952,-420.0,0.00019999,2]
[362308761,1748178643961,-420.0,0.00019999,2]
[362308763,1748178643970,-420.0,0.00019999,2]
[362308765,1748178643981,-363.97568016,0.00019999,2]
[362308767,1748178643990,-480.3,0.00019999,2]
[362308769,1748178644000,-480.3,0.00019999,2]
[362308771,1748178644011,-480.3,0.00019999,2]
[362308773,1748178644021,-480.3,0.00019999,2]
[362308775,1748178644031,-480.3,0.00019999,2]
[362308777,1748178644041,-480.3,0.00019999,2]
[362308779,1748178644051,-480.3,0.00019999,2]
[362308781,1748178644060,-480.3,0.00019999,2]
[362308783,1748178644070,-480.3,0.00019999,2]
[362308785,1748178644079,-480.3,0.00019999,2]
[362308787,1748178644089,-707.25,0.00019999,2]
[362308789,1748178644098,-480.3,0.00019999,2]
[362308791,1748178644108,-707.25,0.00019999,2]
[362308793,1748178644118,-480.3,0.00019999,2]
[362308795,1748178644128,-707.25,0.00019999,2]
[362308798,1748178644138,-480.3,0.00019999,2]
[362308800,1748178644148,-707.25,0.00019999,2]
[362308802,1748178644157,-480.3,0.00019999,2]
[362308803,1748178644167,-707.25,0.00019999,2]
[362308806,1748178644177,-480.3,0.00019999,2]
[362308807,1748178644186,-707.25,0.00019999,2]
[362308809,1748178644196,-480.3,0.00019999,2]
[362308811,1748178644206,-707.25,0.00019999,2]
[362308813,1748178644215,-480.3,0.00019999,2]
[362308815,1748178644225,-707.25,0.00019999,2]
[362308817,1748178644235,-480.3,0.00019999,2]
[362308819,1748178644245,-707.25,0.00019999,2]
[362308821,1748178644255,-480.3,0.00019999,2]
[362308823,1748178644264,-707.25,0.00019999,2]
[362308826,1748178644276,-480.3,0.00019999,2]
[362308827,1748178644285,-707.25,0.00019999,2]
[362308829,1748178644296,-480.3,0.00019999,2]
[362308831,1748178644305,-707.25,0.00019999,2]
[362308833,1748178644315,-480.3,0.00019999,2]
[362308835,1748178644325,-707.25,0.00019999,2]
[362308837,1748178644339,-480.42291682,0.00019999,2]
[362308839,1748178644348,-707.25,0.00019999,2]
[362308841,1748178644358,-707.25,0.00019999,2]
[362308843,1748178644368,-707.25,0.00019999,2]
[362308845,1748178644378,-707.25,0.00019999,2]
[362308847,1748178644388,-707.25,0.00019999,2]
[362308849,1748178644397,-707.25,0.00019999,2]
[362308851,1748178644407,-707.25,0.00019999,2]
[362308853,1748178644417,-707.25,0.00019999,2]
[362308855,1748178644427,-707.25,0.00019999,2]
[362308857,1748178644436,-707.42,0.00019999,2]
[362308859,1748178644446,-420.0,0.00019999,2]
[362308861,1748178644455,-330.81,0.00019999,2]
[362308863,1748178644464,-420.0,0.00019999,2]
[362308865,1748178644474,-420.0,0.00019999,2]
[362308867,1748178644483,-420.0,0.00019999,2]
[362308869,1748178644493,-420.0,0.00019999,2]
[362308871,1748178644502,-420.0,0.00019999,2]
[362308873,1748178644512,-206.77,0.00019999,2]
[362308875,1748178644523,-1000.0,0.00019999,2]
[362308877,1748178644534,-420.0,0.00019999,2]
[362308879,1748178644544,-420.0,0.00019999,2]
[362308881,1748178644553,-420.0,0.00019999,2]
[362308883,1748178644562,-420.0,0.00019999,2]
[362308885,1748178644571,-420.0,0.00019999,2]
[362308887,1748178644580,-420.0,0.00019999,2]
[362308889,1748178644590,-420.0,0.00019999,2]
[362308891,1748178644599,-420.0,0.00019999,2]
[362308893,1748178644609,-526.93520631,0.00019999,2]
[362308895,1748178644618,-420.0,0.00019999,2]
[362308897,1748178644627,-420.0,0.00019999,2]
[362308899,1748178644636,-420.0,0.00019999,2]
[362308901,1748178644646,-420.0,0.00019999,2]
[362308903,1748178644655,-420.0,0.00019999,2]
[362308905,1748178644665,-420.0,0.00019999,2]
[362308907,1748178644675,-420.0,0.00019999,2]
[362308909,1748178644684,-420.0,0.00019999,2]
[362308911,1748178644693,-300.3,0.00019999,2]
[362308913,1748178644702,-420.0,0.00019999,2]
[362308915,1748178644712,-420.0,0.00019999,2]
[362308917,1748178644721,-420.0,0.00019999,2]
[362308919,1748178644730,-315.92,0.00019999,2]
[362308921,1748178644739,-420.0,0.00019999,2]
[362308923,1748178644749,-420.0,0.00019999,2]
[362308925,1748178644758,-420.0,0.00019999,2]
[362308928,1748178644769,-420.0,0.00019999,2]
[362308930,1748178644779,-420.0,0.00019999,2]
[362308932,1748178644788,-420.0,0.00019999,2]
[362308934,1748178644798,-420.0,0.00019999,2]
[362308936,1748178644808,-512.82,0.00019999,2]
[362308938,1748178644817,-420.0,0.00019999,2]
[362308940,1748178644827,-420.0,0.00019999,2]
[362308942,1748178644836,-420.0,0.00019999,2]
[362308944,1748178644846,-420.0,0.00019999,2]
[362308946,1748178644855,-420.0,0.00019999,2]
[362308948,1748178644864,-420.0,0.00019999,2]
[362308966,1748178645016,-420.0,0.00019999,2]
[362308969,1748178645050,-420.0,0.00019999,2]
[362308971,1748178645060,-223.58,0.00019999,2]
[362308973,1748178645069,-420.0,0.00019999,2]
[362308975,1748178645079,-180.69,0.00019999,2]
[362308977,1748178645088,-420.0,0.00019999,2]
[362308979,1748178645097,-420.0,0.00019999,2]
[362308981,1748178645107,-420.0,0.00019999,2]
[362308983,1748178645116,-420.0,0.00019999,2]
[362308985,1748178645126,-420.0,0.00019999,2]
[362308987,1748178645136,-420.0,0.00019999,2]
[362308989,1748178645146,-420.0,0.00019999,2]
[362308991,1748178645156,-420.0,0.00019999,2]
[362308993,1748178645165,-463.72,0.00019999,2]
[362308995,1748178645175,-420.0,0.00019999,2]
[362308997,1748178645184,-420.0,0.00019999,2]
[362308999,1748178645194,-420.0,0.00019999,2]
[362309001,1748178645204,-420.0,0.00019999,2]
[362309003,1748178645213,-420.0,0.00019999,2]
[362309005,1748178645222,-420.0,0.00019999,2]
[362309007,1748178645233,-420.0,0.00019999,2]
[362309009,1748178645242,-420.0,0.00019999,2]
[362309011,1748178645252,-420.0,0.00019999,2]
[362309013,1748178645261,-420.0,0.00019999,2]
[362309015,1748178645271,-420.0,0.00019999,2]
[362309017,1748178645282,-420.0,0.00019999,2]
[362309019,1748178645291,-420.0,0.00019999,2]
[362309021,1748178645301,-420.0,0.00019999,2]
[362309023,1748178645310,-436.05,0.00019999,2]
[362309025,1748178645320,-258.4046375,0.00019999,2]
[362309027,1748178645329,-420.0,0.00019999,2]
[362309029,1748178645338,-420.0,0.00019999,2]
[362309031,1748178645348,-420.0,0.00019999,2]
[362309033,1748178645357,-420.0,0.00019999,2]
[362309035,1748178645366,-420.0,0.00019999,2]
[362309037,1748178645376,-420.0,0.00019999,2]
[362309039,1748178645385,-447.63,0.00019999,2]
[362309041,1748178645395,-420.0,0.00019999,2]
[362309043,1748178645404,-420.0,0.00019999,2]
[362309045,1748178645414,-420.0,0.00019999,2]
[362309047,1748178645423,-420.0,0.00019999,2]
[362309049,1748178645432,-420.0,0.00019999,2]
[362309051,1748178645442,-415.08,0.00019999,2]
[362309053,1748178645451,-420.0,0.00019999,2]
[362309055,1748178645462,-420.0,0.00019999,2]
[362309057,1748178645471,-420.0,0.00019999,2]
[362309059,1748178645480,-420.0,0.00019999,2]
[362309061,1748178645489,-420.0,0.00019999,2]
[362309063,1748178645498,-420.0,0.00019999,2]
[362309065,1748178645507,-420.0,0.00019999,2]
[362309067,1748178645516,-420.0,0.00019999,2]
[362309068,1748178645525,-420.0,0.00019999,2]
[362309070,1748178645536,-512.04,0.00019999,2]
[362309072,1748178645545,-420.0,0.00019999,2]
[362309074,1748178645554,-420.0,0.00019999,2]
[362309076,1748178645565,-420.0,0.00019999,2]
[362309078,1748178645574,-79.85403403,0.00019999,2]
[362309082,1748178645604,-265.35,0.00019996,2]
[362309085,1748178645614,-70.14596597,0.00019999,2]
[362309086,1748178645623,-9.82803016,0.00019999,2]
[362309089,1748178645635,-410.17196984,0.00019999,2]
[362309091,1748178645645,-576.0,0.0002,2]
[362309093,1748178645654,-27.06038282,0.0002,2]
[362309095,1748178645665,-930.3199402,0.0002,2]
[362309105,1748178645789,-420.0,0.00019999,2]
[362309107,1748178645799,-420.0,0.00019999,2]
[362309108,1748178645809,-420.0,0.00019999,2]
[362309109,1748178645818,-420.0,0.00019999,2]
[362309110,1748178645827,-420.0,0.00019999,2]
[362309111,1748178645837,-8382.53237227,0.0002,2]
[362309116,1748178645919,-270.85223616,0.00019998,2]
[362309968,1748178848603,-218.79687005,0.00017126,2]
[362309969,1748178850533,-266.30283643,0.00017126,2]
[362309970,1748178854102,-201.0,0.00017126,2]
[362309971,1748178855541,-0.28029352,0.00017126,2]
[362309972,1748179231592,5075.78958,0.000228,30]
[362309973,1748179236730,5075.78958,0.000216,30]
[362309974,1748179520474,200.32410995,9e-05,2]
[362309975,1748179526208,234.10536661,0.000108,2]
[362309976,1748179554106,15012.0,0.00015,10]
[362309980,1748179634144,-206.0,0.00018313,2]
[362309981,1748179634166,-1000.0,0.00018971,2]
[362309982,1748179634188,-166.49,0.00018992,2]
[362309983,1748179634213,-169.62,0.00019006,2]
[362309984,1748179634234,-182.31,0.00019017,2]
[362309985,1748179634257,-149.60318864,0.00019084,2]
[362309986,1748179637089,-50.39681136,0.00019084,2]
[362309987,1748179637110,-686.38,0.0001939,2]
[362309988,1748179637129,-57.19652024,0.000195,2]
[362309990,1748179812698,461.48,0.00013699,2]
[362310002,1748179832142,-542.80347976,0.000195,2]
[362310003,1748179832151,-207.4,0.00019588,2]
[362310004,1748179832162,-151.149996,0.00019599,2]
[362310005,1748179832172,-173.46678285,0.00019599,2]
[362310006,1748179832185,-1026.53321715,0.00019599,2]
[362310007,1748179832194,-209.0,0.000196,2]
[362310008,1748179832204,-150.99,0.000196,2]
[362310009,1748179832213,-999.99,0.000196,2]
[362310010,1748179832225,-9999.99,0.000196,2]
[362310011,1748179832235,-150.99,0.000196,2]
[362310012,1748179832247,-499.99,0.000196,2]
[362310013,1748179832258,-9999.99,0.000196,2]
[362310014,1748179832267,-9999.99,0.000196,2]
[362310015,1748179832277,-152.0,0.00019754,3]
[362310016,1748179832287,-985.33984191,0.0001978,2]
[362310021,1748179838150,-22583.91857501,0.0001978,2]
[362310022,1748179838160,-5041.73935808,0.000198,2]
[362310023,1748179838170,-151.0,0.00019886,2]
[362310024,1748179838179,-2923.4,0.00019897,2]
[362310025,1748179838189,-451.45,0.00019898,2]
[362310026,1748179838198,-1409.56,0.00019898,2]
[362310027,1748179838208,-3498.3,0.00019898,2]
[362310028,1748179838218,-6095.8986,0.00019898,2]
[362310029,1748179838227,-270.6948,0.00019899,2]
[362310030,1748179838237,-433.57925464,0.00019899,2]
[362310031,1748179838246,-433.57925461,0.00019899,2]
[362310032,1748179838256,-433.57925461,0.00019899,2]
[362310033,1748179838266,-433.57925461,0.00019899,2]
[362310034,1748179838276,-168.28317843,0.000199,2]
[362310035,1748179838285,-5000.0,0.000199,2]
[362310036,1748179838295,-470.99585436,0.000199,2]
[362310037,1748179838304,-5683.34350221,0.000199,2]
[362310038,1748179838313,-200.78815017,0.000199,2]
[362310039,1748179838323,-635.10571879,0.000199,2]
[362310040,1748179838332,-347.775,0.00019988,2]
[362310041,1748179838342,-420.0,0.00019996,2]
[362310042,1748179838351,-420.0,0.00019996,2]
[362310043,1748179838363,-420.0,0.00019996,2]
[362310044,1748179838374,-420.0,0.00019996,2]
[362310045,1748179838384,-420.0,0.00019996,2]
[362310046,1748179838396,-420.0,0.00019996,2]
[362310047,1748179838406,-420.0,0.00019998,2]
[362310048,1748179838417,-420.0,0.00019998,2]
[362310049,1748179838427,-420.0,0.00019998,2]
[362310050,1748179838437,-268.71221674,0.00019998,2]
[362310051,1748179838447,-150.0,0.00019998,2]
[362310052,1748179838456,-420.0,0.00019998,2]
[362310053,1748179838468,-150.0,0.00019998,2]
[362310054,1748179838478,-150.0,0.00019998,2]
[362310055,1748179838487,-420.0,0.00019998,2]
[362310056,1748179838497,-420.0,0.00019998,2]
[362310057,1748179838506,-242.246779,0.00019998,2]
[362310058,1748179838516,-420.0,0.00019998,2]
[362310059,1748179838525,-420.0,0.00019998,2]
[362310060,1748179838535,-420.0,0.00019998,2]
[362310061,1748179838544,-420.0,0.00019998,2]
[362310062,1748179838553,-416.44097082,0.00019998,2]
[362310063,1748179838563,-1253.52194751,0.00019998,2]
[362310064,1748179838573,-1253.52194751,0.00019998,2]
[362310065,1748179838582,-28.37354539,0.00019998,2]
[362310072,1748179843026,-175.5740513,0.00017168,2]
[362310088,1748179845227,-465.5359487,0.00017168,2]
[362310090,1748179845238,-641.11,0.00019432,2]
[362310092,1748179845248,-433.57925461,0.00019899,2]
[362310094,1748179845258,-420.0,0.00019998,2]
[362310096,1748179845268,-162.86578011,0.00019998,2]
[362310097,1748179845278,-1253.52194751,0.00019998,2]
[362310098,1748179845287,-1253.52194751,0.00019998,2]
[362310099,1748179845297,-1253.52194751,0.00019998,2]
[362310100,1748179845306,-1253.52194751,0.00019998,2]
[362310101,1748179845316,-1253.52194751,0.00019998,2]
[362310102,1748179845325,-1253.52194751,0.00019998,2]
[362310103,1748179845335,-1253.52194751,0.00019998,2]
[362310104,1748179845346,-1253.52194751,0.00019998,2]
[362310105,1748179845356,-1253.52194751,0.00019998,2]
[362310106,1748179845365,-572.13791125,0.00019998,2]
[362310107,1748179845377,-681.38403626,0.00019998,2]
[362310108,1748179845388,-1253.52194751,0.00019998,2]
[362310109,1748179845401,-208.89401623,0.00019998,2]
[362310114,1748179846388,-433.57925461,0.000199,2]
[362310115,1748179846403,-1044.62793128,0.00019998,2]
[362310116,1748179846414,-1253.52194751,0.00019998,2]
[362310117,1748179846424,-1253.52194751,0.00019998,2]
[362310118,1748179846435,-1253.52194751,0.00019998,2]
[362310119,1748179846444,-1253.52194751,0.00019998,2]
[362310120,1748179846454,-1253.52194751,0.00019998,2]
[362310121,1748179846464,-1333.291526,0.00019998,2]
[362310122,1748179846475,-1333.291526,0.00019998,2]
[362310123,1748179846486,-1333.291526,0.00019998,2]
[362310124,1748179846496,-1333.291526,0.00019998,2]
[362310125,1748179846505,-1333.291526,0.00019998,2]
[362310126,1748179846516,-1333.291526,0.00019998,2]
[362310127,1748179846526,-1333.291526,0.00019998,2]
[362310128,1748179846536,-1333.291526,0.00019998,2]
[362310129,1748179846546,-1333.291526,0.00019998,2]
[362310130,1748179846556,-1333.291526,0.00019998,2]
[362310131,1748179846566,-31.39294996,0.00019998,2]
[362310133,1748179846577,-1835.21518647,0.00019998,2]
[362310134,1748179846587,-1164.78481353,0.00019999,2]
[362310135,1748179846599,-561.16066053,0.00019999,2]
[362310136,1748179846611,-480.3050001,0.00019999,2]
[362310192,1748179930257,1000.0,0.00027,120]
[362310193,1748179977209,820.0,0.00026,120]
[362310195,1748180383560,250.0,0.00015,2]
[362310196,1748180385260,-184.6225684,0.00017,2]
[362310197,1748180386816,-115.3774316,0.00017,2]
[362310199,1748180555597,156.62540869,0.000175,5]
[362310200,1748180750169,-1464.772,0.00027397,120]
[362310202,1748180828271,237.11223093,0.00027397,120]
[362310203,1748180828517,438.4,0.00013699,2]
[362310204,1748180835133,-182.31,0.00018968,2]
[362310205,1748180835155,-1000.0,0.00018984,2]
[362310206,1748180835178,-154.86,0.00018994,2]
[362310207,1748180835200,-216.50058319,0.00018999,2]
[362310208,1748180835220,-350.0,0.00019,2]
[362310209,1748180835245,-151.149996,0.00019599,2]
[362310210,1748180835267,-217.33206904,0.00019879,2]
[362310211,1748180849092,-672.90310801,0.00019879,2]
[362310212,1748180921180,492.0,0.00027397,120]
[362310220,1748181032416,-206.0,0.00018945,2]
[362310221,1748181032428,-151.149996,0.00019599,2]
[362310222,1748181032442,-300.0,0.00019879,2]
[362310223,1748181032452,-1200.0,0.00019879,2]
[362310224,1748181032464,-29110.22941647,0.0001988,2]
[362310225,1748181032477,-5147.59572813,0.0001988,2]
[362310226,1748181032689,-22976.85586605,0.0001988,2]
[362310227,1748181036034,10000.0,0.00027397,120]
[362310229,1748181038390,-4330.49265068,0.0001988,2]
[362310230,1748181038401,-207.4,0.00019888,2]
[362310231,1748181038412,-173.43170188,0.00019897,2]
[362310232,1748181038423,-173.43170184,0.00019897,2]
[362310233,1748181038434,-173.43170184,0.00019898,2]
[362310234,1748181038445,-173.43170184,0.00019898,2]
[362310235,1748181038456,-173.43170184,0.00019898,2]
[362310236,1748181038468,-173.43170184,0.00019899,2]
[362310237,1748181038480,-173.43170184,0.00019899,2]
[362310238,1748181038491,-173.43170184,0.00019899,2]
[362310239,1748181038502,-150.99,0.00019899,2]
[362310240,1748181038512,-9703.9,0.00019899,2]
[362310241,1748181038523,-150.99,0.00019899,2]
[362310242,1748181038533,-1695.71918456,0.00019899,2]
[362310243,1748181038545,-8304.27081544,0.00019899,2]
[362310244,1748181038555,-999.99,0.00019899,2]
[362310245,1748181038564,-5607.27931302,0.000199,2]
[362310246,1748181038576,-1620.89068698,0.000199,2]
[362310247,1748181038587,-173.43170184,0.000199,2]
[362310248,1748181038597,-1500.0,0.000199,2]
[362310249,1748181038606,-1500.0,0.000199,2]
[362310251,1748181038615,-1500.0,0.000199,2]
[362310253,1748181038624,-1500.0,0.000199,2]
[362310255,1748181038633,-1500.0,0.000199,2]
[362310257,1748181038642,-1500.0,0.000199,2]
[362310259,1748181038652,-1500.0,0.000199,2]
[362310261,1748181038661,-1500.0,0.000199,2]
[362310263,1748181038670,-1500.0,0.000199,2]
[362310265,1748181038680,-810.29,0.000199,2]
[362310267,1748181038689,-1500.0,0.000199,2]
[362310269,1748181038699,-173.43170184,0.000199,2]
[362310271,1748181038708,-200.78815009,0.000199,2]
[362310273,1748181038718,-798.31,0.00019987,2]
[362310274,1748181038731,-151.0,0.00019987,2]
[362310276,1748181038740,-798.31,0.00019989,2]
[362310278,1748181038749,-214.14111683,0.00019995,2]
[362310289,1748181039050,-863.67147302,0.00019995,2]
[362310290,1748181039070,-863.67147302,0.00019995,2]
[362310291,1748181039086,-863.67147302,0.00019995,2]
[362310292,1748181039098,-863.67147302,0.00019995,2]
[362310293,1748181039109,-863.67147302,0.00019995,2]
[362310294,1748181039118,-863.67147302,0.00019995,2]
[362310295,1748181039128,-863.67147302,0.00019995,2]
[362310296,1748181039138,-863.67147302,0.00019995,2]
[362310297,1748181039147,-863.67147302,0.00019995,2]
[362310298,1748181039156,-863.67147302,0.00019995,2]
[362310299,1748181039167,-863.67147302,0.00019995,2]
[362310300,1748181039176,-863.67147302,0.00019995,2]
[362310301,1748181039185,-863.67147302,0.00019995,2]
[362310302,1748181039196,-863.67147302,0.00019995,2]
[362310303,1748181039205,-863.67147302,0.00019995,2]
[362310304,1748181039215,-863.67147302,0.00019995,2]
[362310305,1748181039226,-420.0,0.00019996,2]
[362310306,1748181039236,-420.0,0.00019996,2]
[362310307,1748181039247,-289.65474045,0.00019996,2]
[362310308,1748181039256,-420.0,0.00019996,2]
[362310309,1748181039268,-420.0,0.00019996,2]
[362310310,1748181039278,-420.0,0.00019996,2]
[362310311,1748181039289,-420.0,0.00019996,2]
[362310312,1748181039300,-420.0,0.00019996,2]
[362310313,1748181039309,-492.19398946,0.00019996,2]
[362310314,1748181039319,-420.0,0.00019996,2]
[362310315,1748181039329,-420.0,0.00019996,2]
[362310316,1748181039340,-420.0,0.00019996,2]
[362310317,1748181039350,-266.50776842,0.00019996,2]
[362310318,1748181039361,-242.246779,0.00019996,2]
[362310319,1748181039372,-158.20908644,0.00019996,2]
[362310320,1748181039382,-420.0,0.00019996,2]
[362310321,1748181039392,-97557.23678206,0.00019996,2]
[362310322,1748181039404,-278.22,0.00019997,2]
[362310323,1748181039414,-142202.467874,0.00019997,3]
[362310324,1748181039425,-420.0,0.00019998,2]
[362310325,1748181039435,-420.0,0.00019998,2]
[362310326,1748181039447,-420.0,0.00019998,2]
[362310327,1748181039458,-420.0,0.00019998,2]
[362310328,1748181039467,-500.0,0.00019998,2]
[362310329,1748181039477,-150.0,0.00019998,2]
[362310330,1748181039486,-400.0,0.00019998,2]
[362310331,1748181039496,-330.01534231,0.00019998,2]
[362310332,1748181039505,-420.0,0.00019998,2]
[362310333,1748181039516,-420.0,0.00019998,2]
[362310334,1748181039527,-420.0,0.00019998,2]
[362310335,1748181039538,-420.0,0.00019998,2]
[362310336,1748181039549,-420.0,0.00019998,2]
[362310337,1748181039558,-420.0,0.00019998,2]
[362310338,1748181039569,-420.0,0.00019998,2]
[362310339,1748181039579,-420.0,0.00019998,2]
[362310340,1748181039589,-420.0,0.00019998,2]
[362310341,1748181039599,-420.0,0.00019998,2]
[362310342,1748181039609,-420.0,0.00019998,2]
[362310343,1748181039619,-420.0,0.00019998,2]
[362310344,1748181039630,-449.62,0.00019998,2]
[362310345,1748181039639,-420.0,0.00019998,2]
[362310346,1748181039648,-287.82127754,0.00019998,2]
[362310347,1748181039657,-420.0,0.00019998,2]
[362310348,1748181039668,-420.0,0.00019998,2]
[362310349,1748181039677,-420.0,0.00019998,2]
[362310350,1748181039687,-420.0,0.00019998,2]
[362310351,1748181039696,-420.0,0.00019998,2]
[362310352,1748181039707,-420.0,0.00019998,2]
[362310353,1748181039716,-435.89289857,0.00019998,2]
[362310354,1748181039729,-420.0,0.00019998,2]
[362310355,1748181039738,-420.0,0.00019998,2]
[362310356,1748181039748,-420.0,0.00019998,2]
[362310357,1748181039757,-420.0,0.00019998,2]
[362310358,1748181039768,-420.0,0.00019998,2]
[362310359,1748181039778,-150.0,0.00019998,2]
[362310360,1748181039787,-420.0,0.00019998,2]
[362310361,1748181039797,-420.0,0.00019998,2]
[362310362,1748181039808,-420.0,0.00019998,2]
[362310363,1748181039817,-420.0,0.00019998,2]
[362310364,1748181039827,-150.0,0.00019998,2]
[362310365,1748181039836,-420.0,0.00019998,2]
[362310366,1748181039845,-420.0,0.00019998,2]
[362310367,1748181039855,-336.01600698,0.00019998,2]
[362310368,1748181039865,-420.0,0.00019998,2]
[362310369,1748181039874,-1284.54,0.00019998,2]
[362310370,1748181039884,-1284.54,0.00019998,2]
[362310371,1748181039893,-420.0,0.00019998,2]
[362310372,1748181039903,-420.0,0.00019998,2]
[362310373,1748181039912,-420.0,0.00019998,2]
[362310374,1748181039922,-420.0,0.00019998,2]
[362310375,1748181039932,-420.0,0.00019998,2]
[362310376,1748181039941,-420.0,0.00019998,2]
[362310377,1748181039950,-218.30297916,0.00019998,2]
[362310381,1748181040366,-138.15720457,0.00019998,2]
[362310382,1748181040375,-125.68467909,0.00019998,2]
[362310383,1748181040388,-294.31532091,0.00019998,2]
[362310384,1748181040397,-500.0,0.00019998,2]
[362310385,1748181040407,-420.0,0.00019998,2]
[362310386,1748181040416,-420.0,0.00019998,2]